[Event "Pan-Am Intercoll."]
[Site "Burlingame USA"]
[Date "2018.12.30"]
[Round "6"]
[White "Kovalyov, Anton"]
[Black "Ringoir, Tanguy"]
[Result "1/2-1/2"]
[ECO "A17"]
[WhiteElo "2621"]
[BlackElo "2516"]
[PlyCount "40"]
[GameId "2129404762116990"]
[EventDate "2018.12.28"]
[EventType "team"]
[EventRounds "6"]
[EventCountry "USA"]
[SourceTitle "10 Days #565"]
[Source "ChessMix"]
[SourceDate "2019.01.01"]
[SourceVersion "1"]
[SourceVersionDate "2019.01.01"]
[SourceQuality "1"]
[TimeControl "5400+30"]

1. c4 {[%emt 0:00:00]} Nf6 {[%emt 0:00:00]} 2. Nf3 {[%emt 0:00:31]} e6 {[%emt 0:00:00]} 3. Nc3 {[%emt 0:01:11]} d5 {[%emt 0:00:00]} 4. e3 {[%emt 0:00:18]} b6 {[%emt 0:00:17]} 5. b3 {[%emt 0:01:01]} Bb7 {[%emt 0:00:05]} 6. Bb2 {[%emt 0:00:18]} Bd6 {[%emt 0:01:19]} 7. cxd5 {[%emt 0:01:01]} exd5 {[%emt 0:00:12]} 8. Nb5 {[%emt 0:00:33]} Be7 {[%emt 0:01:01]} 9. Be5 {[%emt 0:01:06]} Na6 {[%emt 0:00:06]} 10. Be2 {[%emt 0:02:11]} O-O {[%emt 0:00:06]} 11. O-O {[%emt 0:00:45]} c5 {[%emt 0:05:10]} 12. d4 {[%emt 0:01:42]} Nb4 {[%emt 0:00:18]} 13. dxc5 {[%emt 0:10:51]} bxc5 {[%emt 0:00:05]} 14. Bb2 {[%emt 0:00:11]} Qb6 {[%emt 0:06:45]} 15. Nc3 {[%emt 0:00:32]} Qe6 {[%emt 0:00:52]} 16. a3 {[%emt 0:01:04]} Nc6 {[%emt 0:00:04]} 17. Qc2 {[%emt 0:00:25]} h6 {[%emt 0:04:26]} 18. Rad1 {[%emt 0:02:53]} Rfd8 {[%emt 0:01:38]} 19. Rfe1 {[%emt 0:05:12]} Bf8 {[%emt 0:01:23]} 20. Bf1 {[%emt 0:09:09]} Na5 {[%emt 0:04:08]} 1/2-1/2

[Event "Quebec op inv."]
[Site "Montreal CAN"]
[Date "2013.07.21"]
[Round "2.16"]
[White "Kovalyov, Anton"]
[Black "Morin, Yves"]
[Result "1-0"]
[ECO "A53"]
[WhiteElo "2606"]
[BlackElo "2185"]
[PlyCount "75"]
[GameId "2160767739316929"]
[EventDate "2013.07.21"]
[EventType "swiss"]
[EventRounds "9"]
[EventCountry "CAN"]
[TimeControl "240+2"]

1. c4 d6 2. d4 Nf6 3. Nf3 Bg4 4. Qb3 Qc8 5. g3 c6 6. Bg2 Nbd7 7. h3 Bxf3 8. Bxf3 g6 9. Bg2 Bg7 10. O-O O-O 11. Nc3 Qc7 12. Be3 Rfe8 13. Rac1 a6 14. Rfd1 Rab8 15. a3 h6 16. Qa2 a5 17. Qb3 Ra8 18. Na4 Ra6 19. d5 c5 20. Nc3 Rea8 21. a4 Rc8 22. f4 Ne8 23. Bd2 Qd8 24. e3 Nc7 25. Be1 Raa8 26. Qc2 Na6 27. g4 Nb4 28. Qe2 Qb6 29. h4 Na6 30. g5 hxg5 31. hxg5 Re8 32. Bh3 Rad8 33. Ra1 Nf8 34. Ra3 Nc7 35. Qc2 Na6 36. Rb3 Nb4 37. Qh2 Ra8 38. Ne4 1-0